[Event "Titled Tuesday Blitz February 22 Late 2022"]
[White "Sadhwani, Raunak"]
[Black "Sjugirov, Sanan"]
[WhiteFideId "35093487"]
[BlackFideId "4189302"]
[WhiteElo "2616"]
[BlackElo "2602"]
[Result "1-0"]
[Round "11"]
[TimeControl "180+1"]
[Date "2022.02.22"]
[WhiteClock "0:00:05"]
[BlackClock "0:00:04"]

1. d4 {[%clk 0:03:00]}  Nf6 {[%clk 0:03:00]} 2. Nf3 {[%clk 0:03:01]}  d5 {[%clk 0:03:00]} 3. Bf4 {[%clk 0:03:01]}  c5 {[%clk 0:02:58]} 4. e3 {[%clk 0:03:02]}  Qb6 {[%clk 0:02:53]} 5. Nbd2 {[%clk 0:02:57]}  e6 {[%clk 0:02:40]} 6. Rb1 {[%clk 0:02:52]}  Nc6 {[%clk 0:02:35]} 7. c3 {[%clk 0:02:47]}  Nh5 {[%clk 0:02:29]} 8. Be5 {[%clk 0:02:43]}  f6 {[%clk 0:02:29]} 9. Bg3 {[%clk 0:02:40]}  g6 {[%clk 0:02:26]} 10. Bd3 {[%clk 0:02:31]}  Bd7 {[%clk 0:02:20]} 11. Bh4 {[%clk 0:02:26]}  Be7 {[%clk 0:02:15]} 12. O-O {[%clk 0:02:17]}  O-O {[%clk 0:02:13]} 13. b4 {[%clk 0:02:06]}  cxb4 {[%clk 0:01:37]} 14. cxb4 {[%clk 0:02:07]}  Qd8 {[%clk 0:01:19]} 15. a3 {[%clk 0:01:59]}  Rc8 {[%clk 0:01:14]} 16. Nb3 {[%clk 0:01:59]}  b6 {[%clk 0:01:14]} 17. Ba6 {[%clk 0:01:57]}  Rc7 {[%clk 0:01:13]} 18. Rc1 {[%clk 0:01:48]}  Nb8 {[%clk 0:01:09]} 19. Be2 {[%clk 0:01:48]}  Rxc1 {[%clk 0:01:02]} 20. Qxc1 {[%clk 0:01:49]}  Ba4 {[%clk 0:01:00]} 21. Qb2 {[%clk 0:01:34]}  Qd7 {[%clk 0:00:57]} 22. Rc1 {[%clk 0:01:06]}  Rc8 {[%clk 0:00:57]} 23. Nfd2 {[%clk 0:01:04]}  Ng7 {[%clk 0:00:55]} 24. g4 {[%clk 0:01:02]}  Rxc1+ {[%clk 0:00:50]} 25. Qxc1 {[%clk 0:01:03]}  Qc6 {[%clk 0:00:41]} 26. Qb2 {[%clk 0:01:00]}  Nd7 {[%clk 0:00:39]} 27. Bg3 {[%clk 0:00:52]}  f5 {[%clk 0:00:37]} 28. h3 {[%clk 0:00:48]}  h5 {[%clk 0:00:33]} 29. Nc1 {[%clk 0:00:37]}  hxg4 {[%clk 0:00:27]} 30. hxg4 {[%clk 0:00:38]}  Bb5 {[%clk 0:00:24]} 31. Bxb5 {[%clk 0:00:32]}  Qxb5 {[%clk 0:00:25]} 32. Qc2 {[%clk 0:00:33]}  Nf6 {[%clk 0:00:19]} 33. Nd3 {[%clk 0:00:31]}  Nxg4 {[%clk 0:00:17]} 34. a4 {[%clk 0:00:31]}  Qd7 {[%clk 0:00:14]} 35. Nf3 {[%clk 0:00:28]}  Bf6 {[%clk 0:00:06]} 36. b5 {[%clk 0:00:29]}  Ne8 {[%clk 0:00:06]} 37. Bb8 {[%clk 0:00:17]}  Kf7 {[%clk 0:00:05]} 38. Be5 {[%clk 0:00:14]}  Ke7 {[%clk 0:00:05]} 39. Qc3 {[%clk 0:00:12]}  Bxe5 {[%clk 0:00:04]} 40. Nfxe5 {[%clk 0:00:13]}  Nxe5 {[%clk 0:00:03]} 41. Nxe5 {[%clk 0:00:14]}  Qc7 {[%clk 0:00:03]} 42. Nc6+ {[%clk 0:00:15]}  Kf6 {[%clk 0:00:03]} 43. Qb4 {[%clk 0:00:10]}  Nd6 {[%clk 0:00:03]} 44. f3 {[%clk 0:00:09]}  g5 {[%clk 0:00:03]} 45. Kg2 {[%clk 0:00:09]}  g4 {[%clk 0:00:03]} 46. fxg4 {[%clk 0:00:09]}  fxg4 {[%clk 0:00:04]} 47. a5 {[%clk 0:00:07]}  Kg5 {[%clk 0:00:03]} 48. a6 {[%clk 0:00:07]}  Ne4 {[%clk 0:00:02]} 49. Qe1 {[%clk 0:00:05]}  Qf7 {[%clk 0:00:02]} 50. Qf1 {[%clk 0:00:05]}  Qxf1+ {[%clk 0:00:02]} 51. Kxf1 {[%clk 0:00:06]}  Nc3 {[%clk 0:00:02]} 52. Nxa7 {[%clk 0:00:06]}  Kf5 {[%clk 0:00:03]} 53. Nc8 {[%clk 0:00:06]}  Nxb5 {[%clk 0:00:03]} 54. Nd6+ {[%clk 0:00:06]}  Nxd6 {[%clk 0:00:03]} 55. a7 {[%clk 0:00:07]}  Ke4 {[%clk 0:00:03]} 56. a8=Q {[%clk 0:00:07]}  Kxe3 {[%clk 0:00:03]} 57. Qc6 {[%clk 0:00:07]}  Ne4 {[%clk 0:00:03]} 58. Qxe6 {[%clk 0:00:08]}  g3 {[%clk 0:00:04]} 59. Qxb6 {[%clk 0:00:07]}  Kf3 {[%clk 0:00:05]} 60. Qe6 {[%clk 0:00:04]}  Nc3 {[%clk 0:00:03]} 61. Qf5+ {[%clk 0:00:04]}  Ke3 {[%clk 0:00:03]} 62. Qe5+ {[%clk 0:00:04]}  Ne4 {[%clk 0:00:04]} 63. Kg2 {[%clk 0:00:04]}  Kd3 {[%clk 0:00:04]} 64. Qxd5 {[%clk 0:00:05]}  Nc3 {[%clk 0:00:04]} 65. Qe5 {[%clk 0:00:05]}  Ne4 {[%clk 0:00:04]} 66. d5 {[%clk 0:00:05]} 1-0


[Site "https://www.chess.com"]

[Event "Titled Tuesday Blitz February 22 Late 2022"]
[White "Salimova, Nurgyul"]
[Black "Lopez Del Alamo, Antonio"]
[WhiteFideId "2915138"]
[BlackFideId "2227339"]
[WhiteElo "2185"]
[BlackElo "2082"]
[Result "1-0"]
[Round "11"]
[TimeControl "180+1"]
[Date "2022.02.22"]
[WhiteClock "0:01:10"]
[BlackClock "0:00:10"]

1. d4 {[%clk 0:03:00]}  Nf6 {[%clk 0:02:58]} 2. Nf3 {[%clk 0:03:01]}  g6 {[%clk 0:02:57]} 3. Bg5 {[%clk 0:03:01]}  Bg7 {[%clk 0:02:57]} 4. Nbd2 {[%clk 0:03:01]}  d5 {[%clk 0:02:56]} 5. e3 {[%clk 0:03:01]}  c5 {[%clk 0:02:50]} 6. c3 {[%clk 0:02:59]}  Nbd7 {[%clk 0:02:44]} 7. Be2 {[%clk 0:02:57]}  Qc7 {[%clk 0:02:39]} 8. O-O {[%clk 0:02:55]}  O-O {[%clk 0:02:35]} 9. Bf4 {[%clk 0:02:49]}  Qb6 {[%clk 0:02:33]} 10. Qb3 {[%clk 0:02:44]}  c4 {[%clk 0:02:29]} 11. Qa3 {[%clk 0:02:42]}  Re8 {[%clk 0:02:23]} 12. b3 {[%clk 0:02:40]}  Nh5 {[%clk 0:01:49]} 13. bxc4 {[%clk 0:02:32]}  Nxf4 {[%clk 0:01:40]} 14. exf4 {[%clk 0:02:33]}  dxc4 {[%clk 0:01:29]} 15. Nxc4 {[%clk 0:02:34]}  Qc7 {[%clk 0:01:23]} 16. Nce5 {[%clk 0:02:33]}  Nxe5 {[%clk 0:01:19]} 17. fxe5 {[%clk 0:02:31]}  Be6 {[%clk 0:01:07]} 18. h4 {[%clk 0:02:18]}  a6 {[%clk 0:00:51]} 19. Ng5 {[%clk 0:02:13]}  Bc4 {[%clk 0:00:45]} 20. Bxc4 {[%clk 0:02:09]}  Qxc4 {[%clk 0:00:46]} 21. Qb3 {[%clk 0:01:58]}  Rac8 {[%clk 0:00:31]} 22. Qxb7 {[%clk 0:01:57]}  Qxc3 {[%clk 0:00:32]} 23. Rad1 {[%clk 0:01:47]}  Rc4 {[%clk 0:00:25]} 24. Qd7 {[%clk 0:01:30]}  Rf8 {[%clk 0:00:19]} 25. e6 {[%clk 0:01:23]}  f6 {[%clk 0:00:13]} 26. Ne4 {[%clk 0:01:19]}  Qc2 {[%clk 0:00:12]} 27. Nc5 {[%clk 0:01:15]}  Rxd4 {[%clk 0:00:10]} 28. Qxd4 {[%clk 0:01:10]} 1-0


[Site "https://www.chess.com"]

[Event "Titled Tuesday Blitz February 22 Late 2022"]
[White "Sanchez Alvares, Kelvin Antonio"]
[Black "Mirzoev, Azer"]
[WhiteFideId "3906680"]
[BlackFideId "13400304"]
[WhiteElo "2193"]
[BlackElo "2525"]
[Result "1/2-1/2"]
[Round "11"]
[TimeControl "180+1"]
[Date "2022.02.22"]
[WhiteClock "0:00:03"]
[BlackClock "0:00:07"]

1. d4 {[%clk 0:02:58]}  d5 {[%clk 0:02:59]} 2. c4 {[%clk 0:02:58]}  c6 {[%clk 0:02:59]} 3. Nf3 {[%clk 0:02:55]}  Nf6 {[%clk 0:02:59]} 4. Nc3 {[%clk 0:02:56]}  dxc4 {[%clk 0:02:59]} 5. a4 {[%clk 0:02:53]}  Bf5 {[%clk 0:02:58]} 6. Ne5 {[%clk 0:02:52]}  e6 {[%clk 0:02:55]} 7. f3 {[%clk 0:02:52]}  c5 {[%clk 0:02:55]} 8. e4 {[%clk 0:02:51]}  Bg6 {[%clk 0:02:55]} 9. Be3 {[%clk 0:02:50]}  cxd4 {[%clk 0:02:56]} 10. Qxd4 {[%clk 0:02:51]}  Qxd4 {[%clk 0:02:56]} 11. Bxd4 {[%clk 0:02:52]}  Nfd7 {[%clk 0:02:54]} 12. Bxc4 {[%clk 0:02:51]}  Nxe5 {[%clk 0:02:53]} 13. Bxe5 {[%clk 0:02:50]}  a6 {[%clk 0:02:51]} 14. h4 {[%clk 0:02:45]}  Nc6 {[%clk 0:02:47]} 15. Bg3 {[%clk 0:02:42]}  h5 {[%clk 0:02:32]} 16. O-O-O {[%clk 0:02:37]}  Rc8 {[%clk 0:02:26]} 17. Kb1 {[%clk 0:02:34]}  Bb4 {[%clk 0:02:21]} 18. Rc1 {[%clk 0:02:25]}  Ke7 {[%clk 0:02:18]} 19. Na2 {[%clk 0:02:20]}  Bd6 {[%clk 0:02:12]} 20. Bxd6+ {[%clk 0:02:20]}  Kxd6 {[%clk 0:02:13]} 21. Rhd1+ {[%clk 0:02:19]}  Ke7 {[%clk 0:02:14]} 22. Nc3 {[%clk 0:02:15]}  f6 {[%clk 0:02:10]} 23. b3 {[%clk 0:02:00]}  Bf7 {[%clk 0:02:09]} 24. Kb2 {[%clk 0:01:59]}  Rhd8 {[%clk 0:02:06]} 25. Rxd8 {[%clk 0:01:58]}  Rxd8 {[%clk 0:02:06]} 26. Rd1 {[%clk 0:01:58]}  Rc8 {[%clk 0:02:06]} 27. Rc1 {[%clk 0:01:47]}  Be8 {[%clk 0:01:54]} 28. Ne2 {[%clk 0:01:43]}  Ne5 {[%clk 0:01:51]} 29. a5 {[%clk 0:01:42]}  g5 {[%clk 0:01:38]} 30. hxg5 {[%clk 0:01:39]}  fxg5 {[%clk 0:01:38]} 31. Nd4 {[%clk 0:01:38]}  Nxc4+ {[%clk 0:01:22]} 32. Rxc4 {[%clk 0:01:36]}  Rxc4 {[%clk 0:01:22]} 33. bxc4 {[%clk 0:01:34]}  Kd6 {[%clk 0:01:19]} 34. Kc3 {[%clk 0:01:27]}  h4 {[%clk 0:01:08]} 35. Kd3 {[%clk 0:01:22]}  Bd7 {[%clk 0:01:05]} 36. Nb3 {[%clk 0:01:06]}  e5 {[%clk 0:01:05]} 37. Nd2 {[%clk 0:00:35]}  g4 {[%clk 0:00:57]} 38. fxg4 {[%clk 0:00:30]}  Bxg4 {[%clk 0:00:57]} 39. Nf1 {[%clk 0:00:27]}  Kc5 {[%clk 0:00:51]} 40. Kc3 {[%clk 0:00:20]}  b6 {[%clk 0:00:39]} 41. axb6 {[%clk 0:00:18]}  Kxb6 {[%clk 0:00:39]} 42. Ne3 {[%clk 0:00:18]}  Be6 {[%clk 0:00:38]} 43. Nd5+ {[%clk 0:00:17]}  Kc5 {[%clk 0:00:37]} 44. Nc7 {[%clk 0:00:16]}  Bc8 {[%clk 0:00:36]} 45. Nd5 {[%clk 0:00:16]}  a5 {[%clk 0:00:34]} 46. Ne3 {[%clk 0:00:15]}  Be6 {[%clk 0:00:32]} 47. Nd5 {[%clk 0:00:15]}  Bf7 {[%clk 0:00:25]} 48. Ne3 {[%clk 0:00:14]}  Bg6 {[%clk 0:00:25]} 49. Nf5 {[%clk 0:00:13]}  a4 {[%clk 0:00:18]} 50. Nxh4 {[%clk 0:00:10]}  Bxe4 {[%clk 0:00:18]} 51. g4 {[%clk 0:00:09]}  Bh7 {[%clk 0:00:11]} 52. g5 {[%clk 0:00:09]}  e4 {[%clk 0:00:10]} 53. g6 {[%clk 0:00:08]}  Bg8 {[%clk 0:00:11]} 54. Nf5 {[%clk 0:00:08]}  a3 {[%clk 0:00:10]} 55. Kb3 {[%clk 0:00:02]}  Bxc4+ {[%clk 0:00:09]} 56. Kxa3 {[%clk 0:00:02]}  Be6 {[%clk 0:00:10]} 57. g7 {[%clk 0:00:02]}  Bg8 {[%clk 0:00:06]} 58. Kb2 {[%clk 0:00:01]}  Kd5 {[%clk 0:00:06]} 59. Kc3 {[%clk 0:00:01]}  Ke5 {[%clk 0:00:06]} 60. Nh6 {[%clk 0:00:02]}  Kf6 {[%clk 0:00:06]} 61. Nxg8+ {[%clk 0:00:01]}  Kxg7 {[%clk 0:00:06]} 62. Kd4 {[%clk 0:00:02]}  e3 {[%clk 0:00:07]} 63. Kxe3 {[%clk 0:00:03]} 1/2-1/2


[Site "https://www.chess.com"]

[Event "Titled Tuesday Blitz February 22 Late 2022"]
[White "Sarana, Alexey"]
[Black "Hess, Robert"]
[WhiteFideId "24133795"]
[BlackFideId "2022036"]
[WhiteElo "2665"]
[BlackElo "2557"]
[Result "1-0"]
[Round "11"]
[TimeControl "180+1"]
[Date "2022.02.22"]
[WhiteClock "0:00:05"]
[BlackClock "0:00:03"]

1. d4 {[%clk 0:02:48]}  g6 {[%clk 0:02:59]} 2. c4 {[%clk 0:02:48]}  Bg7 {[%clk 0:03:00]} 3. e4 {[%clk 0:02:47]}  d6 {[%clk 0:02:59]} 4. Nc3 {[%clk 0:02:47]}  e6 {[%clk 0:03:00]} 5. h4 {[%clk 0:02:45]}  h6 {[%clk 0:03:00]} 6. Be3 {[%clk 0:02:43]}  Nd7 {[%clk 0:02:59]} 7. Bd3 {[%clk 0:02:43]}  b6 {[%clk 0:02:59]} 8. Nge2 {[%clk 0:02:36]}  Bb7 {[%clk 0:02:58]} 9. Qd2 {[%clk 0:02:37]}  Ne7 {[%clk 0:02:43]} 10. g4 {[%clk 0:02:35]}  d5 {[%clk 0:02:19]} 11. cxd5 {[%clk 0:02:34]}  exd5 {[%clk 0:02:18]} 12. e5 {[%clk 0:02:34]}  Nxe5 {[%clk 0:01:54]} 13. dxe5 {[%clk 0:02:30]}  d4 {[%clk 0:01:54]} 14. Bb5+ {[%clk 0:01:56]}  c6 {[%clk 0:01:37]} 15. Nxd4 {[%clk 0:01:05]}  cxb5 {[%clk 0:01:34]} 16. O-O {[%clk 0:01:06]}  b4 {[%clk 0:00:58]} 17. Ncb5 {[%clk 0:01:02]}  Bxe5 {[%clk 0:00:58]} 18. f4 {[%clk 0:00:58]}  Bg7 {[%clk 0:00:47]} 19. f5 {[%clk 0:00:56]}  gxf5 {[%clk 0:00:35]} 20. Nxf5 {[%clk 0:00:56]}  Nxf5 {[%clk 0:00:18]} 21. Rxf5 {[%clk 0:00:57]}  Qxd2 {[%clk 0:00:17]} 22. Bxd2 {[%clk 0:00:57]}  O-O {[%clk 0:00:17]} 23. Bxb4 {[%clk 0:00:56]}  Rfd8 {[%clk 0:00:14]} 24. Nd6 {[%clk 0:00:54]}  Bc8 {[%clk 0:00:10]} 25. Rxf7 {[%clk 0:00:49]}  Bxg4 {[%clk 0:00:09]} 26. Raf1 {[%clk 0:00:48]}  Rd7 {[%clk 0:00:06]} 27. R7f4 {[%clk 0:00:34]}  h5 {[%clk 0:00:05]} 28. Nf5 {[%clk 0:00:29]}  Bxb2 {[%clk 0:00:04]} 29. Nh6+ {[%clk 0:00:28]}  Kh7 {[%clk 0:00:04]} 30. Nxg4 {[%clk 0:00:28]}  hxg4 {[%clk 0:00:04]} 31. Rxg4 {[%clk 0:00:29]}  Rg8 {[%clk 0:00:04]} 32. Rxg8 {[%clk 0:00:27]}  Kxg8 {[%clk 0:00:05]} 33. Kg2 {[%clk 0:00:23]}  Rd4 {[%clk 0:00:03]} 34. Be7 {[%clk 0:00:23]}  Rd2+ {[%clk 0:00:03]} 35. Kh3 {[%clk 0:00:23]}  Be5 {[%clk 0:00:02]} 36. a3 {[%clk 0:00:21]}  Rd3+ {[%clk 0:00:02]} 37. Kg4 {[%clk 0:00:21]}  Bd6 {[%clk 0:00:03]} 38. Rf8+ {[%clk 0:00:20]}  Kg7 {[%clk 0:00:03]} 39. Rd8 {[%clk 0:00:20]}  Rd4+ {[%clk 0:00:03]} 40. Kh5 {[%clk 0:00:18]}  Bc5 {[%clk 0:00:03]} 41. a4 {[%clk 0:00:05]}  Rxa4 {[%clk 0:00:02]} 42. Bg5 {[%clk 0:00:04]}  Ra5 {[%clk 0:00:02]} 43. Rd7+ {[%clk 0:00:05]}  Kg8 {[%clk 0:00:02]} 44. Kg6 {[%clk 0:00:05]}  Kf8 {[%clk 0:00:03]} 45. Rd8# {[%clk 0:00:05]} 1-0


[Site "https://www.chess.com"]

[Event "Titled Tuesday Blitz February 22 Late 2022"]
[White "Svane, Rasmus"]
[Black "Dubov, Daniil"]
[WhiteFideId "4657101"]
[BlackFideId "24126055"]
[WhiteElo "2645"]
[BlackElo "2791"]
[Result "0-1"]
[Round "11"]
[TimeControl "180+1"]
[Date "2022.02.22"]
[WhiteClock "0:00:04"]
[BlackClock "0:00:09"]

1. Nf3 {[%clk 0:03:00]}  d5 {[%clk 0:02:59]} 2. g3 {[%clk 0:03:00]}  Nd7 {[%clk 0:02:58]} 3. d4 {[%clk 0:03:00]}  Nb6 {[%clk 0:02:58]} 4. Nc3 {[%clk 0:03:00]}  Nf6 {[%clk 0:02:56]} 5. a4 {[%clk 0:03:00]}  a5 {[%clk 0:02:56]} 6. Bg2 {[%clk 0:03:01]}  Bf5 {[%clk 0:02:54]} 7. Nh4 {[%clk 0:03:01]}  e6 {[%clk 0:02:53]} 8. Nxf5 {[%clk 0:03:01]}  exf5 {[%clk 0:02:54]} 9. Qd3 {[%clk 0:03:01]}  g6 {[%clk 0:02:46]} 10. O-O {[%clk 0:03:01]}  c6 {[%clk 0:02:44]} 11. Bg5 {[%clk 0:02:57]}  Be7 {[%clk 0:02:38]} 12. Bxf6 {[%clk 0:02:57]}  Bxf6 {[%clk 0:02:38]} 13. e3 {[%clk 0:02:58]}  Nc4 {[%clk 0:02:35]} 14. b3 {[%clk 0:02:56]}  Nd6 {[%clk 0:02:36]} 15. Ne2 {[%clk 0:02:56]}  h5 {[%clk 0:02:07]} 16. c4 {[%clk 0:02:54]}  Ne4 {[%clk 0:01:57]} 17. cxd5 {[%clk 0:02:53]}  cxd5 {[%clk 0:01:57]} 18. Qb5+ {[%clk 0:02:49]}  Kf8 {[%clk 0:01:39]} 19. Nf4 {[%clk 0:02:43]}  h4 {[%clk 0:01:35]} 20. Qxd5 {[%clk 0:02:39]}  Qe7 {[%clk 0:01:31]} 21. Bxe4 {[%clk 0:02:29]}  fxe4 {[%clk 0:01:29]} 22. Rac1 {[%clk 0:02:28]}  Kg7 {[%clk 0:01:25]} 23. Rc4 {[%clk 0:01:54]}  Rad8 {[%clk 0:01:11]} 24. Qb5 {[%clk 0:01:54]}  Bg5 {[%clk 0:00:51]} 25. Rfc1 {[%clk 0:01:20]}  Bxf4 {[%clk 0:00:47]} 26. gxf4 {[%clk 0:01:09]}  Rh5 {[%clk 0:00:43]} 27. Rc5 {[%clk 0:01:08]}  Rc8 {[%clk 0:00:37]} 28. d5 {[%clk 0:00:58]}  Rxd5 {[%clk 0:00:22]} 29. Rxc8 {[%clk 0:00:40]}  Rxb5 {[%clk 0:00:22]} 30. axb5 {[%clk 0:00:41]}  Qd7 {[%clk 0:00:19]} 31. Kf1 {[%clk 0:00:19]}  Qxb5+ {[%clk 0:00:16]} 32. Kg1 {[%clk 0:00:19]}  Qxb3 {[%clk 0:00:16]} 33. h3 {[%clk 0:00:18]}  a4 {[%clk 0:00:16]} 34. R8c3 {[%clk 0:00:17]}  Qe6 {[%clk 0:00:12]} 35. Kg2 {[%clk 0:00:17]}  b5 {[%clk 0:00:11]} 36. Rc6 {[%clk 0:00:18]}  Qb3 {[%clk 0:00:09]} 37. R6c3 {[%clk 0:00:17]}  Qb2 {[%clk 0:00:09]} 38. R3c2 {[%clk 0:00:17]}  Qb4 {[%clk 0:00:09]} 39. Ra2 {[%clk 0:00:15]}  Qb3 {[%clk 0:00:10]} 40. Rca1 {[%clk 0:00:14]}  Kf6 {[%clk 0:00:10]} 41. Ra3 {[%clk 0:00:14]}  Qc4 {[%clk 0:00:09]} 42. Rb1 {[%clk 0:00:11]}  g5 {[%clk 0:00:08]} 43. fxg5+ {[%clk 0:00:10]}  Kxg5 {[%clk 0:00:09]} 44. Rb2 {[%clk 0:00:09]}  Qc5 {[%clk 0:00:08]} 45. Ra1 {[%clk 0:00:08]}  a3 {[%clk 0:00:07]} 46. Rb3 {[%clk 0:00:06]}  b4 {[%clk 0:00:07]} 47. Rab1 {[%clk 0:00:04]}  a2 {[%clk 0:00:05]} 48. Ra1 {[%clk 0:00:04]}  Qc4 {[%clk 0:00:06]} 49. Rxb4 {[%clk 0:00:02]}  Qxb4 {[%clk 0:00:07]} 50. Rxa2 {[%clk 0:00:02]}  Qb5 {[%clk 0:00:07]} 51. Rd2 {[%clk 0:00:02]}  f5 {[%clk 0:00:07]} 52. Rd4 {[%clk 0:00:03]}  Qc5 {[%clk 0:00:07]} 53. Ra4 {[%clk 0:00:03]}  Qd5 {[%clk 0:00:07]} 54. Rb4 {[%clk 0:00:03]}  Qd1 {[%clk 0:00:07]} 55. Rb2 {[%clk 0:00:03]}  Qf3+ {[%clk 0:00:07]} 56. Kh2 {[%clk 0:00:03]}  Kf6 {[%clk 0:00:07]} 57. Rb6+ {[%clk 0:00:03]}  Ke5 {[%clk 0:00:07]} 58. Rb2 {[%clk 0:00:04]}  Kd5 {[%clk 0:00:08]} 59. Rb5+ {[%clk 0:00:04]}  Kc4 {[%clk 0:00:08]} 60. Rb2 {[%clk 0:00:04]}  Kc3 {[%clk 0:00:08]} 61. Ra2 {[%clk 0:00:05]}  Kb4 {[%clk 0:00:08]} 62. Rb2+ {[%clk 0:00:05]}  Kc4 {[%clk 0:00:08]} 63. Ra2 {[%clk 0:00:04]}  Kb3 {[%clk 0:00:08]} 64. Rd2 {[%clk 0:00:04]}  f4 {[%clk 0:00:09]} 0-1


[Site "https://www.chess.com"]

[Event "Titled Tuesday Blitz February 22 Late 2022"]
[White "Tan, Jun Ying"]
[Black "Moskvin, Anatoly"]
[WhiteFideId "5710413"]
[BlackFideId "24199990"]
[WhiteElo "1827"]
[BlackElo "2079"]
[Result "1-0"]
[Round "11"]
[TimeControl "180+1"]
[Date "2022.02.23"]
[WhiteClock "0:00:49"]
[BlackClock "0:00:01"]

1. d4 {[%clk 0:03:00]}  Nf6 {[%clk 0:02:58]} 2. c4 {[%clk 0:03:01]}  c5 {[%clk 0:02:59]} 3. d5 {[%clk 0:03:01]}  b5 {[%clk 0:03:00]} 4. cxb5 {[%clk 0:03:02]}  a6 {[%clk 0:03:00]} 5. bxa6 {[%clk 0:03:02]}  Bxa6 {[%clk 0:03:00]} 6. Nc3 {[%clk 0:03:02]}  g6 {[%clk 0:03:01]} 7. g3 {[%clk 0:03:03]}  Bg7 {[%clk 0:03:00]} 8. Bg2 {[%clk 0:03:03]}  d6 {[%clk 0:03:00]} 9. Nf3 {[%clk 0:03:04]}  O-O {[%clk 0:03:01]} 10. Rb1 {[%clk 0:03:04]}  Nbd7 {[%clk 0:03:01]} 11. O-O {[%clk 0:03:03]}  Ng4 {[%clk 0:02:53]} 12. Qc2 {[%clk 0:02:50]}  Qa5 {[%clk 0:02:49]} 13. Bd2 {[%clk 0:02:47]}  Bxc3 {[%clk 0:02:24]} 14. Bxc3 {[%clk 0:02:46]}  Qxa2 {[%clk 0:02:24]} 15. Nd2 {[%clk 0:02:45]}  Bxe2 {[%clk 0:01:32]} 16. Rfe1 {[%clk 0:02:34]}  Qa6 {[%clk 0:01:32]} 17. Qe4 {[%clk 0:02:20]}  Bd3 {[%clk 0:01:06]} 18. Qxg4 {[%clk 0:02:20]}  Bf5 {[%clk 0:01:06]} 19. Qh4 {[%clk 0:02:11]}  Bxb1 {[%clk 0:01:01]} 20. Rxb1 {[%clk 0:02:10]}  Qd3 {[%clk 0:00:41]} 21. Qxe7 {[%clk 0:01:53]}  Ra7 {[%clk 0:00:38]} 22. Qxd6 {[%clk 0:01:50]}  Re8 {[%clk 0:00:33]} 23. Bh3 {[%clk 0:01:36]}  f5 {[%clk 0:00:33]} 24. Bf1 {[%clk 0:01:19]}  Qc2 {[%clk 0:00:33]} 25. Qf4 {[%clk 0:01:14]}  Nb6 {[%clk 0:00:15]} 26. d6 {[%clk 0:01:14]}  Qa4 {[%clk 0:00:05]} 27. b4 {[%clk 0:00:50]}  Nd7 {[%clk 0:00:02]} 28. Bc4+ {[%clk 0:00:49]}  Kf8 {[%clk 0:00:01]} 29. Qh6# {[%clk 0:00:49]} 1-0


[Site "https://www.chess.com"]

[Event "Titled Tuesday Blitz February 22 Late 2022"]
[White "Tomiello, Mateus Costamilan"]
[Black "Vlassov, Nikolai"]
[WhiteFideId "22701958"]
[BlackFideId "4103360"]
[WhiteElo "1975"]
[BlackElo "2407"]
[Result "0-1"]
[Round "11"]
[TimeControl "180+1"]
[Date "2022.02.23"]
[WhiteClock "0:00:01"]
[BlackClock "0:00:03"]

1. c4 {[%clk 0:03:00]}  f5 {[%clk 0:02:59]} 2. Nf3 {[%clk 0:03:00]}  Nf6 {[%clk 0:02:59]} 3. g3 {[%clk 0:02:59]}  d6 {[%clk 0:02:59]} 4. Bg2 {[%clk 0:02:59]}  e5 {[%clk 0:02:59]} 5. O-O {[%clk 0:03:00]}  Nc6 {[%clk 0:02:59]} 6. d4 {[%clk 0:02:53]}  e4 {[%clk 0:02:59]} 7. Ng5 {[%clk 0:02:53]}  h6 {[%clk 0:02:53]} 8. Nh3 {[%clk 0:02:49]}  g5 {[%clk 0:02:54]} 9. f3 {[%clk 0:02:33]}  exf3 {[%clk 0:02:53]} 10. exf3 {[%clk 0:02:33]}  Bg7 {[%clk 0:02:54]} 11. Re1+ {[%clk 0:02:33]}  Ne7 {[%clk 0:02:54]} 12. Qe2 {[%clk 0:02:22]}  Kf7 {[%clk 0:02:46]} 13. Nc3 {[%clk 0:01:37]}  Re8 {[%clk 0:02:45]} 14. Qd3 {[%clk 0:01:29]}  c5 {[%clk 0:02:07]} 15. Be3 {[%clk 0:01:28]}  Nc6 {[%clk 0:01:39]} 16. dxc5 {[%clk 0:01:21]}  dxc5 {[%clk 0:01:39]} 17. Qxd8 {[%clk 0:01:21]}  Rxd8 {[%clk 0:01:37]} 18. Bxc5 {[%clk 0:01:21]}  Be6 {[%clk 0:01:36]} 19. Bf1 {[%clk 0:01:08]}  Rd2 {[%clk 0:01:31]} 20. Re2 {[%clk 0:00:53]}  Rad8 {[%clk 0:01:30]} 21. Rae1 {[%clk 0:00:52]}  Rxe2 {[%clk 0:01:18]} 22. Bxe2 {[%clk 0:00:51]}  Rd2 {[%clk 0:01:16]} 23. b4 {[%clk 0:00:49]}  Nd7 {[%clk 0:01:08]} 24. Nb5 {[%clk 0:00:33]}  Nxc5 {[%clk 0:01:02]} 25. bxc5 {[%clk 0:00:32]}  Rxa2 {[%clk 0:00:56]} 26. Nd6+ {[%clk 0:00:32]}  Kg6 {[%clk 0:00:54]} 27. Bd3 {[%clk 0:00:29]}  Bd4+ {[%clk 0:00:53]} 28. Kh1 {[%clk 0:00:28]}  Bd7 {[%clk 0:00:41]} 29. g4 {[%clk 0:00:18]}  Bxc5 {[%clk 0:00:39]} 30. Bxf5+ {[%clk 0:00:17]}  Bxf5 {[%clk 0:00:39]} 31. Nxf5 {[%clk 0:00:16]}  Nd4 {[%clk 0:00:35]} 32. Nxd4 {[%clk 0:00:12]}  Bxd4 {[%clk 0:00:36]} 33. Rd1 {[%clk 0:00:12]}  Be5 {[%clk 0:00:33]} 34. Kg1 {[%clk 0:00:09]}  Bxh2+ {[%clk 0:00:30]} 35. Kf1 {[%clk 0:00:09]}  Bg3 {[%clk 0:00:28]} 36. Rd7 {[%clk 0:00:09]}  b6 {[%clk 0:00:21]} 37. Rb7 {[%clk 0:00:07]}  Kf6 {[%clk 0:00:19]} 38. Rh7 {[%clk 0:00:06]}  Kg6 {[%clk 0:00:16]} 39. Re7 {[%clk 0:00:05]}  Rh2 {[%clk 0:00:15]} 40. Rxa7 {[%clk 0:00:05]}  Bd6 {[%clk 0:00:09]} 41. Nf2 {[%clk 0:00:03]}  Bc5 {[%clk 0:00:07]} 42. Ne4 {[%clk 0:00:03]}  Rc2 {[%clk 0:00:06]} 43. Ra6 {[%clk 0:00:03]}  Rxc4 {[%clk 0:00:05]} 44. Nxc5 {[%clk 0:00:03]}  Rxc5 {[%clk 0:00:05]} 45. Rxb6+ {[%clk 0:00:04]}  Kg7 {[%clk 0:00:06]} 46. Kg2 {[%clk 0:00:04]}  Rc3 {[%clk 0:00:06]} 47. Kg3 {[%clk 0:00:05]}  Kh7 {[%clk 0:00:05]} 48. Rd6 {[%clk 0:00:05]}  Kg7 {[%clk 0:00:05]} 49. Re6 {[%clk 0:00:06]}  Ra3 {[%clk 0:00:05]} 50. Rd6 {[%clk 0:00:06]}  Rc3 {[%clk 0:00:05]} 51. Rd2 {[%clk 0:00:05]}  Rb3 {[%clk 0:00:05]} 52. Rd7+ {[%clk 0:00:04]}  Kf6 {[%clk 0:00:06]} 53. Ra7 {[%clk 0:00:04]}  Rb6 {[%clk 0:00:03]} 54. Ra5 {[%clk 0:00:04]}  Rc6 {[%clk 0:00:03]} 55. Rf5+ {[%clk 0:00:04]}  Kg6 {[%clk 0:00:04]} 56. Kf2 {[%clk 0:00:05]}  Re6 {[%clk 0:00:04]} 57. Rc5 {[%clk 0:00:04]}  Rd6 {[%clk 0:00:04]} 58. Ke3 {[%clk 0:00:03]}  Kf6 {[%clk 0:00:04]} 59. Rf5+ {[%clk 0:00:03]}  Kg6 {[%clk 0:00:04]} 60. Ke4 {[%clk 0:00:03]}  h5 {[%clk 0:00:04]} 61. Ke5 {[%clk 0:00:03]}  Ra6 {[%clk 0:00:02]} 62. gxh5+ {[%clk 0:00:01]}  Kxh5 {[%clk 0:00:03]} 0-1


[Site "https://www.chess.com"]